bitfinex/quotes_SOLUSD_20260109
["timestamp","ask_amount","ask_price","bid_price","bid_amount"]
[1767919670534,0.59943556,139.18,139.14,10.06364858]
[1767919671132,0.59943556,139.18,139.14,7.8408734]
[1767919671430,0.59943556,139.18,139.14,10.06364858]
[1767919672652,0.59943556,139.18,139.14,7.18675737]
[1767919672848,0.59943556,139.18,139.14,9.40953255]
[1767919673150,0.59943556,139.18,139.14,10.06364858]
[1767919674246,0.59943556,139.18,139.15,4.9]
[1767919674947,0.59943556,139.18,139.14,11.31339331]
[1767919676750,0.65943554,139.17,139.14,7.8408734]
[1767919677051,0.65943554,139.17,139.14,7.18675737]
[1767919678725,0.65943554,139.17,139.14,7.8408734]
[1767919679447,0.65943554,139.17,139.14,11.31339331]
[1767919680249,0.65943554,139.17,139.14,7.8408734]
[1767919680461,0.65943554,139.16,139.13,11.31395757]
[1767919681261,0.65943554,139.16,139.13,7.84143766]
[1767919681557,0.62943555,139.16,139.12,24.71876436]
[1767919683135,0.62943555,139.16,139.12,21.24624445]
[1767919683656,0.62943555,139.16,139.12,8.12624445]
[1767919685559,0.62943555,139.16,139.12,11.59876436]
[1767919686764,0.62943555,139.16,139.13,0.67220401]
[1767919686964,7.81548704,139.16,139.13,0.67220401]
[1767919687942,0.6856102,139.19,139.14,0.67220401]
[1767919688174,0.6856102,139.21,139.17,3.47251991]
[1767919689059,0.6856102,139.2,139.17,3.47251991]
[1767919689763,7.86920919,139.21,139.17,4.14472392]
[1767919689953,7.86920919,139.21,139.17,0.67220401]
[1767919690161,0.6856102,139.2,139.17,4.14472392]
[1767919690964,0.6856102,139.2,139.17,3.47251991]
[1767919691165,0.6856102,139.2,139.16,11.33035876]
[1767919691549,0.6856102,139.2,139.17,7.85753181]
[1767919693063,0.6856102,139.2,139.17,11.33005172]
[1767919693251,0.6856102,139.23,139.19,4.14472392]
[1767919693560,7.86745574,139.24,139.2,4.14472392]
[1767919693865,0.6856102,139.24,139.2,4.14472392]
[1767919694742,7.86752232,139.24,139.2,4.14472392]
[1767919695762,7.86752232,139.24,139.2,0.67220401]
[1767919695763,0.6856102,139.23,139.2,0.67220401]
[1767919696165,0.6856102,139.23,139.2,4.14472392]
[1767919700983,0.6856102,139.23,139.2,0.67220401]
[1767919703172,0.6856102,139.2,139.16,11.33030863]
[1767919703752,0.6856102,139.2,139.17,10.65797056]
[1767919705764,0.6856102,139.2,139.17,11.33017457]
[1767919705953,7.86879915,139.22,139.19,4.14472392]
[1767919706153,7.86879915,139.22,139.19,3.47251991]
[1767919706876,0.6856102,139.21,139.17,7.85765466]
[1767919707179,0.6856102,139.21,139.18,0.67220401]
[1767919707574,0.6856102,139.21,139.17,11.33017457]
[1767919707873,0.6856102,139.2,139.17,11.33018052]
[1767919708064,7.18344838,139.21,139.19,3.47251991]
[1767919708065,0.6856102,139.21,139.19,3.47251991]
[1767919708465,0.6856102,139.21,139.18,4.14472392]
[1767919709064,0.6856102,139.21,139.18,0.67220401]
[1767919709263,0.6856102,139.21,139.18,4.14472392]
[1767919710864,0.6856102,139.23,139.2,4.14472392]
[1767919712773,7.86797035,139.23,139.2,3.47251991]
[1767919713284,7.18236015,139.23,139.21,0.70830051]
[1767919713486,7.18236015,139.23,139.2,4.18082042]
[1767919713787,0.69619742,139.23,139.2,4.18082042]
[1767919715991,7.87877787,139.23,139.19,4.18082042]
[1767919716166,0.69619742,139.22,139.19,4.18082042]
[1767919717391,0.69619742,139.21,139.18,3.75684305]
[1767919719180,7.87908164,139.22,139.18,11.649999]
[1767919719488,7.87908164,139.22,139.19,0.70830051]
[1767919720389,0.69619742,139.21,139.18,8.17747909]
[1767919720592,0.69619742,139.21,139.18,11.649999]
[1767919721484,0.69619742,139.21,139.18,4.46514356]
[1767919721689,0.69619742,139.21,139.18,4.18082042]
[1767919728269,7.87959163,139.21,139.18,4.18082042]
[1767919729491,7.87959163,139.21,139.18,3.47251991]
[1767919730587,0.69619742,139.2,139.18,3.47251991]
[1767919733890,7.8801308,139.2,139.18,3.47251991]
[1767919734098,0.69619742,139.2,139.18,3.47251991]
[1767919734492,0.69619742,139.2,139.18,2.22134468]
[1767919735498,0.69619742,139.2,139.17,0.70830051]
[1767919735699,0.69619742,139.2,139.18,2.22134468]
[1767919736706,0.69619742,139.2,139.19,2.22134468]
[1767919737180,0.69619742,139.2,139.18,2.22134468]
[1767919738709,0.66619743,139.2,139.18,2.22134468]
[1767919739486,0.66619743,139.2,139.19,2.22134468]
[1767919739692,0.66619743,139.2,139.18,2.92964519]
[1767919740305,7.1826499,139.23,139.19,2.92964519]
[1767919740502,7.1826499,139.23,139.19,0.70830051]
[1767919740806,0.69619742,139.22,139.2,2.22134468]
[1767919745906,0.69619742,139.22,139.2,2.88580255]
[1767919746108,0.67860936,139.24,139.21,2.88580255]
[1767919746408,5.38361845,139.23,139.21,0.66445787]
[1767919746609,7.86070187,139.24,139.21,0.66445787]
[1767919746906,5.38398805,139.23,139.21,2.88580255]
[1767919747210,0.67860936,139.24,139.21,0.66445787]
[1767919748204,0.67860936,139.24,139.21,2.88580255]
[1767919748404,0.67860936,139.24,139.21,10.06897149]
[1767919750410,0.66838376,139.23,139.2,2.93000951]
[1767919750714,0.66838376,139.23,139.2,0.70866483]
[1767919751510,0.66838376,139.22,139.17,62.80866483]
[1767919751713,2.88972844,139.23,139.19,0.70866483]
[1767919751890,5.3828927,139.22,139.19,2.93000951]
[1767919752091,0.66838376,139.23,139.2,0.70866483]
[1767919752287,0.66838376,139.23,139.2,2.93000951]
[1767919752491,7.85081798,139.23,139.2,2.93000951]
[1767919752693,7.85081798,139.23,139.2,0.70866483]
[1767919752899,0.66838376,139.22,139.17,0.70866483]
[1767919753108,6.05151971,139.21,139.17,2.93000951]
[1767919753303,0.66838376,139.21,139.17,2.93000951]
[1767919753707,0.66838376,139.21,139.17,0.70866483]
[1767919753907,0.66838376,139.21,139.17,2.93000951]
[1767919755317,7.85180643,139.21,139.17,2.93000951]
[1767919757527,0.66838376,139.21,139.19,2.22134468]
[1767919759024,0.66838376,139.21,139.18,10.11493864]
[1767919760725,0.66838376,139.21,139.18,9.40627381]
[1767919760909,0.66838376,139.21,139.18,10.11493864]
[1767919764526,0.66838376,139.23,139.19,2.93000951]
[1767919764728,5.38275102,139.22,139.19,2.93000951]
[1767919765024,0.66838376,139.22,139.18,2.93000951]
[1767919765529,2.88972844,139.22,139.18,0.70866483]
[1767919765900,0.66838376,139.22,139.18,0.70866483]
[1767919766104,0.66838376,139.22,139.18,5.60866483]
[1767919766523,7.85133573,139.22,139.18,5.60866483]
[1767919766709,0.66838376,139.21,139.18,5.60866483]
[1767919768044,0.66838376,139.21,139.18,7.83000951]
[1767919768730,7.85133573,139.22,139.19,0.70866483]
[1767919769109,0.66838376,139.22,139.19,0.70866483]
[1767919770540,0.66838376,139.22,139.19,2.93000951]
[1767919770719,0.66838376,139.22,139.19,0.70866483]
[1767919771031,0.66838376,139.23,139.2,0.70866483]
[1767919771329,0.66838376,139.24,139.21,2.93000951]
[1767919771734,0.66838376,139.24,139.21,0.70866483]
[1767919773032,7.85024932,139.24,139.21,0.70866483]
[1767919775834,0.70067448,139.23,139.2,0.69766712]
[1767919776009,0.70067448,139.23,139.2,2.9190118]
[1767919776410,0.70067448,139.23,139.2,3.8190118]
[1767919778044,0.70067448,139.23,139.2,11.00282105]
[1767919780634,0.67067449,139.23,139.2,11.00282105]
[1767919783130,0.67067449,139.23,139.2,8.78147637]
[1767919783837,0.67067449,139.23,139.2,8.08380925]
[1767919784554,0.67067449,139.23,139.2,0.9]
[1767919784555,0.70067448,139.22,139.2,0.9]
[1767919784756,0.70067448,139.22,139.19,0.69766712]
[1767919785744,0.70067448,139.21,139.17,0.69766712]
[1767919785925,0.70067448,139.2,139.17,13.12]
[1767919786246,0.67067449,139.2,139.17,13.12]
[1767919786834,0.67067449,139.2,139.17,7.18544594]
[1767919787747,0.6406745,139.2,139.17,7.18544594]
[1767919789140,0.6406745,139.2,139.16,85.32478507]
[1767919789331,0.6406745,139.2,139.16,23.22478507]
[1767919790322,0.6406745,139.2,139.16,21.00344039]
[1767919790557,0.6406745,139.2,139.16,23.22478507]
[1767919790942,0.6406745,139.2,139.17,0.69766712]
[1767919791142,0.6406745,139.2,139.17,2.9190118]
[1767919794340,0.61067451,139.2,139.17,2.9190118]
[1767919794751,0.61067451,139.2,139.17,0.69766712]
[1767919798729,7.79465296,139.2,139.17,0.69766712]
[1767919802556,7.18397845,139.2,139.18,0.67394494]
[1767919803133,7.9032977,139.2,139.17,0.67394494]
[1767919803354,0.71931925,139.17,139.11,3.74303179]
[1767919803555,0.71931925,139.16,139.13,0.67394494]
[1767919803762,0.71931925,139.16,139.13,4.14530906]
[1767919804562,0.71931925,139.18,139.13,0.67394494]
[1767919804753,0.71931925,139.18,139.14,4.14530906]
[1767919804957,0.71931925,139.18,139.15,4.14530906]
[1767919805452,0.71931925,139.18,139.15,11.33174656]
[1767919807342,0.70153951,139.19,139.15,11.33174656]
[1767919810053,0.70153951,139.19,139.15,7.86038244]
[1767919810972,7.88600635,139.19,139.15,7.86038244]
[1767919813173,0.70153951,139.19,139.16,0.67368098]
[1767919813367,7.88568157,139.2,139.17,0.67368098]
[1767919814849,0.70153951,139.19,139.16,0.67368098]
[1767919815164,7.88568157,139.2,139.16,0.67368098]
[1767919815361,0.70153951,139.19,139.16,0.67368098]
[1767919816971,0.70153951,139.19,139.15,0.67368098]
[1767919817172,0.70153951,139.17,139.14,0.67368098]
[1767919818062,0.70153951,139.17,139.13,13.79368098]
[1767919818258,0.70153951,139.16,139.12,0.67368098]
[1767919818854,0.70153951,139.15,139.11,7.18824257]
[1767919819055,0.67153951,139.15,139.11,7.18824257]
[1767919819279,0.67153951,139.15,139.11,7.86192355]
[1767919819684,0.67153951,139.15,139.12,0.67368098]
[1767919821184,0.67153951,139.15,139.11,11.33328767]
[1767919821372,0.67153951,139.15,139.11,7.86192355]
[1767919823371,0.67153951,139.15,139.11,7.18824257]
[1767919823872,0.67153951,139.15,139.11,10.65960669]
[1767919824076,0.70153951,139.14,139.11,11.33328767]
[1767919824378,0.70153951,139.15,139.12,0.67368098]
[1767919826578,0.70153951,139.15,139.11,10.65960669]
[1767919826579,0.70153951,139.15,139.11,11.33328767]
[1767919827187,0.70153951,139.15,139.12,3.47136412]
[1767919828887,0.70153951,139.15,139.12,4.1450451]
[1767919830182,7.88804959,139.15,139.12,4.1450451]
[1767919830391,0.70153951,139.14,139.12,3.47136412]
[1767919830576,0.70153951,139.14,139.11,3.47136412]
[1767919830968,0.70153951,139.14,139.1,24.45394997]
[1767919831165,0.70153951,139.13,139.1,3.47136412]
[1767919831386,0.70153951,139.14,139.11,3.47136412]
[1767919831568,0.70153951,139.14,139.11,4.1450451]
[1767919832580,0.70153951,139.14,139.12,3.47136412]
[1767919832770,0.67524221,139.16,139.13,4.12389768]
[1767919835089,7.86126863,139.16,139.13,4.12389768]
[1767919835679,7.86126863,139.16,139.13,3.47136412]
[1767919836090,0.67524221,139.15,139.13,3.47136412]
[1767919837202,0.67524221,139.15,139.12,4.12389768]
[1767919841899,7.86191451,139.15,139.12,0.65253356]
[1767919842301,21.43547437,139.17,139.12,0.65253356]
[1767919842302,0.67524221,139.16,139.13,4.12389768]
[1767919842796,7.86040396,139.18,139.15,0.65253356]
[1767919843001,7.86040396,139.18,139.15,4.12389768]
[1767919843178,7.86040396,139.18,139.15,0.65253356]
[1767919844096,7.86040396,139.18,139.15,4.12389768]
[1767919844788,7.86040396,139.18,139.15,0.65253356]
[1767919845988,7.86040396,139.18,139.15,4.12389768]
[1767919848610,7.86040396,139.18,139.15,3.47136412]
[1767919848793,0.67524221,139.17,139.14,11.31072288]
[1767919848993,0.67524221,139.17,139.14,4.12389768]
[1767919850810,0.67524221,139.17,139.14,0.65253356]
[1767919854809,0.67524221,139.17,139.13,0.28432314]
[1767919854810,7.86115646,139.17,139.13,0.28432314]
[1767919855009,0.67524221,139.15,139.11,7.84080344]
[1767919855211,4.11660631,139.15,139.12,0.9]
[1767919855511,0.64524219,139.15,139.12,0.9]
[1767919856589,7.83185223,139.15,139.12,0.9]
[1767919856913,7.18661004,139.15,139.12,0.9]
[1767919857114,0.67524221,139.14,139.12,0.9]
[1767919857300,1e-08,139.14,139.12,0.9]
[1767919858393,1e-08,139.14,139.1,0.65253356]
[1767919860720,7.1870059,139.14,139.1,0.65253356]
[1767919860911,0.64524222,139.13,139.1,0.65253356]
[1767919861114,1e-08,139.13,139.1,0.65253356]
[1767919862998,1e-08,139.13,139.09,2.91150151]
[1767919863192,1e-08,139.13,139.1,0.68804642]
[1767919865124,1e-08,139.13,139.09,2.91150151]
[1767919865825,1e-08,139.13,139.1,0.68804642]
[1767919867199,9.84773526,139.14,139.1,0.68804642]
[1767919867394,9.81773527,139.14,139.1,0.68804642]
[1767919867593,9.67925768,139.14,139.1,0.68804642]
[1767919867811,7.45580259,139.14,139.1,0.68804642]
[1767919868211,0.099,139.13,139.1,0.68804642]
[1767919871526,0.099,139.13,139.1,2.91150151]
[1767919871722,0.06900001,139.13,139.1,2.91150151]
[1767919871927,0.06900001,139.13,139.09,10.13656401]
[1767919872602,0.06900001,139.13,139.1,0.72356461]
[1767919878725,0.06900001,139.13,139.09,11.03656401]
[1767919879423,0.06900001,139.13,139.1,0.72356461]
[1767919880830,0.06900001,139.13,139.09,1.62356461]
[1767919881208,2.2924551,139.13,139.09,1.62356461]
[1767919881506,0.40727429,139.12,139.09,1.62356461]
[1767919882429,0.40727429,139.12,139.08,10.33710317]
[1767919882824,0.40727429,139.12,139.09,0.72356461]
[1767919884814,7.5953521,139.12,139.09,0.72356461]
[1767919887435,7.56535211,139.12,139.09,0.72356461]
[1767919888333,7.18752246,139.13,139.09,0.72356461]
[1767919889435,7.56479676,139.13,139.09,0.72356461]
[1767919890223,0.099,139.12,139.09,0.72356461]
[1767919890432,4.963761,139.19,139.1,0.72356461]
[1767919890731,5.3727923,139.18,139.15,0.72356461]
[1767919890932,0.10175492,139.19,139.15,0.72356461]
[1767919891133,5.37109854,139.18,139.15,0.72356461]
[1767919891440,0.10175492,139.19,139.15,0.72356461]
[1767919891733,5.37114405,139.18,139.15,0.72356461]
[1767919891911,0.10175492,139.19,139.15,0.72356461]
[1767919892114,5.37114405,139.18,139.15,2.9470197]
[1767919892315,0.10175492,139.19,139.16,0.72356461]
[1767919892514,5.37103042,139.18,139.16,0.72356461]
[1767919892714,0.10175492,139.19,139.16,0.72356461]
[1767919892939,5.37103169,139.18,139.16,0.72356461]
[1767919893236,0.10175492,139.19,139.16,0.72356461]
[1767919893545,5.3711546,139.18,139.16,0.72356461]
[1767919893720,0.10175492,139.19,139.16,0.66356461]
[1767919895846,0.43116418,139.18,139.13,7.18747829]
[1767919896146,7.62183455,139.19,139.15,0.70125817]
[1767919896941,7.62183455,139.19,139.15,7.88774492]
[1767919897445,7.62183455,139.19,139.16,0.70125817]
[1767919899132,9.84528964,139.19,139.16,0.70125817]
[1767919900229,9.84528964,139.19,139.16,0.64125817]
[1767919900431,7.18409639,139.2,139.16,0.64125817]
[1767919900846,7.67738794,139.2,139.16,0.64125817]
[1767919901022,9.90084303,139.2,139.16,0.64125817]
[1767919901228,9.90084303,139.2,139.16,0.58125817]
[1767919901741,9.90084303,139.2,139.16,0.52125817]
[1767919904148,7.67738794,139.2,139.16,0.52125817]
[1767919904558,10.02433789,139.21,139.17,0.70125817]
[1767919904729,7.8008828,139.21,139.17,0.70125817]
[1767919905042,7.18299704,139.22,139.19,0.70125817]
[1767919905251,7.18299704,139.22,139.19,0.64125817]
[1767919905625,7.34139704,139.22,139.17,2.50777823]
[1767919905830,0.61268555,139.21,139.17,2.50777823]
[1767919906238,0.61268555,139.21,139.17,9.69273225]
[1767919906543,0.61268555,139.21,139.17,7.46927716]
[1767919906729,0.61268555,139.21,139.17,9.69273225]
[1767919907247,0.61268555,139.21,139.18,7.8861895]
[1767919908057,7.18299704,139.22,139.18,7.18493133]
[1767919910055,9.40601283,139.23,139.19,0.70125817]
[1767919910536,10.12372032,139.23,139.19,0.70125817]
[1767919912856,2.94727764,139.24,139.19,7.18438376]
[1767919913857,10.12923871,139.24,139.19,7.18438376]
[1767919914544,10.12923871,139.24,139.19,7.12438376]
[1767919914855,10.12923871,139.24,139.2,0.70125817]
[1767919915037,10.12923871,139.24,139.2,0.64125817]
[1767919916374,21.95083909,139.27,139.2,25.42797219]
[1767919916664,21.95083909,139.27,139.23,3.46814777]
[1767919916962,21.95083909,139.27,139.24,0.70125817]
[1767919917461,22.18683411,139.27,139.24,0.70125817]
[1767919921240,22.18683411,139.27,139.24,0.64125817]
[1767919921746,14.77030407,139.27,139.25,3.46814777]
[1767919923364,14.77030407,139.27,139.25,4.18342194]
[1767919923968,13.32030407,139.27,139.26,3.46814777]
[1767919924170,12.78757837,139.27,139.26,3.46814777]
[1767919925562,12.78757837,139.27,139.26,10.64896063]
[1767919927863,12.78757837,139.27,139.26,3.46814777]
[1767919928663,0.1,139.28,139.26,10.64896063]
[1767919929155,0.1,139.28,139.27,3.46814777]
[1767919929355,0.1,139.28,139.26,10.64896063]
[1767919929864,0.1,139.28,139.27,3.46814777]
[1767919930169,0.1,139.28,139.26,3.46814777]
[1767919930965,0.1,139.28,139.27,3.46814777]
[1767919931374,0.1,139.29,139.28,3.46814777]
[1767919934062,1e-08,139.29,139.28,10.6479295]
[1767919934258,0.1,139.31,139.28,10.6479295]
[1767919934454,0.1,139.31,139.29,3.46814777]
[1767919934666,0.1,139.31,139.29,3.38665568]
[1767919935450,0.1,139.31,139.29,3.32665568]
[1767919937475,0.1,139.31,139.28,10.64788228]
[1767919937676,0.1,139.31,139.28,7.17973451]
[1767919937976,0.68172825,139.29,139.25,16.56814777]
[1767919938269,0.68172825,139.29,139.25,13.1]
[1767919938476,0.68172825,139.28,139.25,13.1]
[1767919938677,0.68172825,139.28,139.26,4.9]
[1767919938857,0.68172825,139.28,139.25,20.28124007]
[1767919940074,0.68172825,139.28,139.26,3.46814777]
[1767919940772,0.68172825,139.28,139.25,23.74938784]
[1767919941450,0.68172825,139.29,139.25,20.28124007]
[1767919941656,0.68172825,139.29,139.26,3.46814777]
[1767919941858,0.68172825,139.29,139.26,10.64859691]
[1767919943078,0.68172825,139.28,139.25,20.2812811]
[1767919943662,0.68172825,139.28,139.25,21.1812811]
[1767919945060,0.68172825,139.28,139.25,24.64942887]
[1767919947275,0.68172825,139.28,139.25,11.54942887]
[1767919948764,0.68172825,139.28,139.25,8.0812811]
[1767919949082,0.68172825,139.28,139.25,11.54942887]
[1767919950463,0.68172825,139.28,139.25,8.0812811]
[1767919950864,0.68172825,139.27,139.25,0.9]
[1767919953365,0.72167118,139.26,139.23,7.18214495]
[1767919953560,11.36967725,139.28,139.25,0.70929882]
[1767919953871,7.90152948,139.28,139.25,0.70929882]
[1767919954190,0.72167118,139.27,139.24,11.3592707]
[1767919956502,0.72167118,139.27,139.24,7.89112293]
[1767919956797,0.72167118,139.26,139.23,7.18211795]
[1767919960501,0.72167118,139.25,139.21,10.65125862]
[1767919960674,0.72167118,139.25,139.21,11.36055744]
[1767919961603,0.72167118,139.24,139.2,7.89297657]
[1767919961903,0.72167118,139.23,139.2,7.89297657]
[1767919962686,0.72167118,139.23,139.2,0.70929882]
[1767919962882,0.69167119,139.23,139.2,0.70929882]
[1767919963792,0.69167119,139.23,139.2,7.89302911]
[1767919965186,0.69167119,139.23,139.2,11.36117688]
[1767919967797,7.90375486,139.24,139.21,0.70929882]
[1767919967984,0.72167118,139.23,139.2,4.17744659]
[1767919970199,0.72167118,139.23,139.2,5.07744659]
[1767919971500,0.72167118,139.23,139.21,3.46814777]
[1767919972295,0.72167118,139.23,139.2,8.79288631]
[1767919972489,0.72167118,139.23,139.21,3.46814777]
[1767919976504,0.72167118,139.23,139.21,2.22041956]
[1767919977809,0.72167118,139.23,139.2,8.7929799]
[1767919978108,0.72167118,139.23,139.2,11.01339946]
[1767919978806,0.69167119,139.23,139.2,11.01339946]
[1767919979915,0.69167119,139.23,139.2,8.7929799]
[1767919980115,0.69167119,139.23,139.2,11.01339946]
[1767919980411,0.69167119,139.23,139.21,0.70929882]
[1767919983518,0.66509795,139.22,139.2,0.9]
[1767919983805,0.63509796,139.21,139.17,2.92697447]
[1767919984112,0.63509796,139.21,139.17,10.11237236]
[1767919984113,0.60509797,139.21,139.17,10.11237236]
[1767919984509,9.40381629,139.21,139.17,0.70655491]
[1767919985697,9.40381629,139.21,139.16,9.40627081]
[1767919985900,7.84909182,139.2,139.16,9.40627081]
[1767919986212,0.66509795,139.19,139.15,10.11335087]
[1767919988319,0.66509795,139.19,139.16,0.65714228]
[1767919989111,0.66509795,139.19,139.16,2.87756184]
[1767919991714,7.1840611,139.2,139.17,0.65714228]
[1767919991922,0.66652023,139.2,139.17,0.65714228]
[1767920004127,7.85049367,139.2,139.17,0.65714228]
[1767920005228,7.85129726,139.19,139.15,13.12]
[1767920005427,7.85129726,139.19,139.16,2.87756184]
[1767920005632,0.66652023,139.18,139.15,15.99756184]
[1767920005925,7.85129726,139.19,139.16,0.65714228]
[1767920008032,7.85129726,139.19,139.16,2.87756184]
[1767920013734,7.85129726,139.19,139.16,0.65714228]
[1767920014238,0.66652023,139.19,139.17,0.66012514]
[1767920027922,0.66652023,139.19,139.16,0.66012514]
[1767920028124,5.38285674,139.18,139.16,0.66012514]
[1767920028346,5.38793926,139.17,139.16,0.66012514]
[1767920028837,0.66652023,139.19,139.16,0.66012514]
[1767920029037,5.38742187,139.18,139.16,0.66012514]
[1767920029239,0.66652023,139.19,139.16,0.66012514]
[1767920029422,5.3882143,139.18,139.16,0.66012514]
[1767920029621,0.66652023,139.19,139.16,0.66012514]
[1767920029821,5.38821558,139.18,139.16,0.66012514]
[1767920030021,0.66652023,139.19,139.16,0.66012514]
[1767920030217,5.38821558,139.18,139.16,0.66012514]
[1767920030446,0.66652023,139.19,139.16,0.66012514]
[1767920030648,5.38879541,139.18,139.16,0.66012514]
[1767920030836,0.66652023,139.19,139.16,0.66012514]
[1767920031036,5.38879669,139.18,139.16,0.66012514]
[1767920031336,0.7082051,139.18,139.16,0.66012514]
[1767920031542,0.7082051,139.19,139.16,0.66012514]
[1767920031736,5.38873038,139.18,139.16,0.66012514]
[1767920031924,0.7082051,139.19,139.16,0.66012514]
[1767920032121,5.38861382,139.18,139.16,0.66012514]
[1767920032343,0.7082051,139.19,139.16,0.66012514]
[1767920032545,5.38867296,139.18,139.16,0.66012514]
[1767920032846,0.7082051,139.19,139.16,0.66012514]
[1767920033046,5.38867296,139.18,139.16,0.66012514]
[1767920033259,0.7082051,139.19,139.16,0.66012514]
[1767920033450,5.38861672,139.18,139.16,0.66012514]
[1767920033648,5.38861672,139.17,139.16,0.66012514]
[1767920033832,5.38861672,139.17,139.15,7.84641575]
[1767920034153,0.7082051,139.18,139.15,7.84641575]
[1767920034333,5.38868698,139.17,139.15,7.84641575]
[1767920034534,0.7082051,139.18,139.15,7.84641575]
[1767920034734,5.38851834,139.17,139.15,7.84641575]
[1767920034934,0.7082051,139.18,139.14,20.96677854]
[1767920035143,6.09672344,139.17,139.14,23.1871981]
[1767920035434,0.7082051,139.17,139.14,23.1871981]
[1767920035828,0.7082051,139.17,139.14,10.0671981]
[1767920036048,0.7082051,139.17,139.15,0.66012514]
[1767920036733,0.7082051,139.17,139.14,9.40707296]
[1767920036933,0.7082051,139.17,139.14,10.0671981]
[1767920037753,0.7082051,139.17,139.15,2.8805447]
[1767920038062,0.67820511,139.17,139.15,2.8805447]
[1767920038556,0.67820511,139.17,139.15,4.1323549]
[1767920039249,0.67820511,139.17,139.15,0.66012514]
[1767920039452,0.67820511,139.17,139.15,3.47222976]
[1767920040159,0.67820511,139.17,139.14,4.1323549]
[1767920040736,0.67820511,139.17,139.14,11.31910569]
[1767920041260,0.64820512,139.17,139.14,11.31910569]
[1767920042545,0.64820512,139.17,139.15,3.47222976]
[1767920043469,0.64820512,139.17,139.14,11.31910569]
[1767920047865,0.61820513,139.17,139.14,11.31910569]
[1767920050378,7.1857281,139.17,139.12,7.18778082]
[1767920050581,0.63900905,139.15,139.11,4.33101423]
[1767920050880,0.60900906,139.15,139.12,7.18783515]
[1767920051269,0.60900906,139.15,139.11,8.04716186]
[1767920051478,13.12,139.19,139.14,0.65878447]
[1767920051661,5.38570686,139.18,139.14,4.13101423]
[1767920051977,5.38570686,139.17,139.14,4.13101423]
[1767920052184,103.1,139.27,139.17,0.65878447]
[1767920052363,3.47222976,139.26,139.2,3.47222976]
[1767920052562,4.963761,139.25,139.2,4.13101423]
[1767920052864,0.60930906,139.23,139.2,4.13101423]
[1767920053066,0.60930906,139.23,139.21,4.13101423]
[1767920053374,0.69453638,139.24,139.21,4.13101423]
[1767920053962,7.87609714,139.25,139.22,0.65878447]
[1767920054161,0.60930906,139.24,139.22,3.47222976]
[1767920054562,7.87609714,139.25,139.22,4.13101423]
[1767920055074,0.60930906,139.24,139.22,3.47222976]
[1767920055480,0.60930906,139.24,139.21,11.3143126]
[1767920057889,7.18098813,139.26,139.23,0.65878447]
[1767920057890,0.69453638,139.26,139.23,0.65878447]
[1767920058563,0.69453638,139.26,139.22,4.13101423]
[1767920058964,0.69453638,139.26,139.22,11.3137851]
[1767920061364,0.60930906,139.25,139.22,0.65878447]
[1767920065176,0.60930906,139.25,139.21,10.65541013]
[1767920065382,0.60930906,139.25,139.21,11.3141946]
[1767920065581,0.60930906,139.25,139.21,7.18318037]
[1767920065582,0.6936841,139.24,139.21,7.18318037]
[1767920065787,0.6936841,139.24,139.2,13.12]
[1767920065989,0.61097978,139.21,139.17,4.13101423]
[1767920066177,0.61097978,139.21,139.19,1.5]
[1767920066372,1e-08,139.21,139.19,1.5]
[1767920066576,3.47222976,139.22,139.19,1.5]
[1767920067083,7.18236012,139.23,139.19,1.5]
[1767920067388,10.65458988,139.23,139.18,0.65878447]
[1767920068493,7.7009285,139.22,139.18,0.65878447]
[1767920070775,7.7009285,139.22,139.18,4.13101423]
[1767920071874,7.7009285,139.22,139.18,0.65878447]
[1767920072088,7.7009285,139.22,139.18,4.13101423]
[1767920074893,7.7009285,139.22,139.19,0.67236011]
[1767920076588,0.51796999,139.24,139.21,0.67236011]
[1767920080698,0.51796999,139.25,139.22,0.67236011]
[1767920082183,7.69955553,139.25,139.22,0.67236011]
[1767920085582,7.69955553,139.25,139.21,3.47222976]
[1767920085783,7.69955553,139.25,139.21,4.14458987]
[1767920087503,7.18158554,139.25,139.22,0.67236011]
[1767920088192,7.28058554,139.25,139.22,0.67236011]
[1767920089710,0.51378029,139.24,139.21,4.14458987]
[1767920090604,0.51378029,139.24,139.21,0.67236011]
[1767920090817,0.51378029,139.24,139.21,4.14458987]
[1767920091011,0.51378029,139.24,139.21,0.67236011]
[1767920092405,0.099,139.24,139.2,9.05603865]
[1767920092610,0.099,139.24,139.21,0.67236011]
[1767920092808,0.50967396,139.21,139.18,0.67236011]
[1767920093016,3.57944282,139.22,139.18,0.67236011]
[1767920093694,0.50564936,139.21,139.18,0.67236011]
[1767920096405,7.70128084,139.22,139.18,0.67236011]
[1767920096608,11.1735106,139.22,139.18,0.67236011]
[1767920096916,3.47222976,139.19,139.17,0.67236011]
[1767920097709,3.47222976,139.19,139.16,0.67236011]
[1767920098197,10.75980392,139.19,139.16,0.67236011]
[1767920098403,3.47222976,139.18,139.16,0.67236011]
[1767920099119,3.98190372,139.18,139.15,0.67236011]
[1767920100701,2.73249825,139.18,139.15,0.67236011]
[1767920101214,2.33003735,139.17,139.14,0.67236011]
[1767920102620,9.51556995,139.17,139.14,0.67236011]